bitfinex-derivatives/quotes_SOLF0:USTF0_20250328
["timestamp","ask_amount","ask_price","bid_price","bid_amount"]
[1743195276070,12.42551823,129.2,129.13,12.42551823]
[1743195276265,12.42551823,129.17,129.13,40.22551823]
[1743195276465,12.42551823,129.17,129.15,7.7484]
[1743195277070,12.42551823,129.16,129.15,7.80301866]
[1743195281869,20.17371823,129.16,129.15,0.05461866]
[1743195282270,12.42551823,129.16,129.15,0.05461866]
[1743195282466,20.17371823,129.16,129.15,0.05461866]
[1743195283568,20.17371823,129.16,129.08,40.24551823]
[1743195283569,40.24551823,129.16,129.08,40.24551823]
[1743195283768,12.42551823,129.12,129.08,40.24551823]
[1743195283966,12.42551823,129.12,129.1,7.7518]
[1743195284164,12.42551823,129.13,129.06,3.9877]
[1743195284370,12.42551823,129.15,129.14,7.7492]
[1743195286964,12.48216038,129.16,129.15,7.7488]
[1743195292575,12.48216038,129.16,129.14,7.7493]
[1743195292780,12.42551823,129.15,129.14,7.7493]
[1743195294684,12.42551823,129.15,129.13,7.7496]
[1743195294881,12.42551823,129.14,129.1,27.82]
[1743195295080,12.42551823,129.12,129.08,12.42551823]
[1743195295275,12.42551823,129.12,129.11,7.7508]
[1743195296485,12.42551823,129.12,129.1,7.7512]
[1743195296686,12.42551823,129.12,129.09,27.82]
[1743195297185,12.42551823,129.12,129.1,7.7517]
[1743195297382,12.42551823,129.12,129.09,27.82]
[1743195297685,12.42551823,129.12,129.11,7.7511]
[1743195298387,12.42551823,129.12,129.06,78.45381823]
[1743195298587,27.82,129.15,129.06,78.45381823]
[1743195298588,12.42551823,129.1,129.06,44.27381823]
[1743195298791,12.47666227,129.1,129.06,44.27381823]
[1743195299185,12.47666227,129.1,129.07,7.753]
[1743195300282,12.47666227,129.1,129.08,7.7529]
[1743195300482,12.42551823,129.09,129.06,31.8483]
[1743195300679,12.47666227,129.1,129.06,31.8483]
[1743195301083,12.47666227,129.1,129.08,7.7526]
[1743195301482,12.47666227,129.1,129.08,7.7524]
[1743195301690,12.47666227,129.1,129.06,4.0283]
[1743195302292,12.42551823,129.09,129.05,40.24551823]
[1743195303892,12.42551823,129.09,129.07,7.7529]
[1743195307294,12.42551823,129.09,129.08,7.7526]
[1743195308097,12.42551823,129.09,129.07,7.7526]
[1743195308498,12.42551823,129.09,129.05,40.24551823]
[1743195310000,12.42551823,129.09,129.08,7.7524]
[1743195310798,20.17781823,129.09,129.06,7.753]
[1743195312801,12.42551823,129.08,129.06,7.753]
[1743195313005,12.42551823,129.07,129.02,20.34231823]
[1743195313298,12.42551823,129.06,129.03,27.82]
[1743195313501,12.42551823,129.06,129.02,7.9168]
[1743195313802,12.42551823,129.03,129.0,27.82]
[1743195314194,12.42551823,129.01,128.94,1.34875879]
[1743195314501,46.37,128.94,128.64,689.45746463]
[1743195314699,283.64,129.02,128.64,685.46956463]
[1743195314700,12.42551823,128.76,128.64,685.46956463]
[1743195315004,46.37,128.88,128.54,23.25]
[1743195315005,12.42551823,128.65,128.54,23.25]
[1743195315196,12.42551823,128.55,128.52,669.46956463]
[1743195315503,12.42551823,128.53,128.52,669.46956463]
[1743195315697,364.0,128.64,128.52,704.84956463]
[1743195315898,12.42551823,128.62,128.53,295.3702]
[1743195316105,12.42551823,128.62,128.54,12.42551823]
[1743195316298,17.17620444,128.64,128.53,295.3702]
[1743195316497,12.42551823,128.67,128.6,12.42551823]
[1743195316700,21.83758801,128.63,128.55,255.96]
[1743195316896,21.83758801,128.63,128.47,364.0]
[1743195316897,40.78945689,128.63,128.36,280.5912]
[1743195317100,0.05652188,128.6,127.94,39.1058]
[1743195317302,31.37738711,128.2,127.97,31.37738711]
[1743195317600,31.37738711,128.21,128.05,716.92504623]
[1743195317799,31.37738711,128.28,128.05,654.68085853]
[1743195317800,31.37738711,128.08,128.05,654.68085853]
[1743195318000,31.37738711,128.07,127.92,255.96]
[1743195318193,55.16,128.12,128.05,0.05608908]
[1743195318400,9.41206978,128.07,128.06,62.0]
[1743195318596,0.05438182,128.08,128.06,62.0]
[1743195318799,170.07851763,128.11,128.05,0.05699441]
[1743195319097,98.0,128.06,127.95,48.94936466]
[1743195319299,0.05704791,128.08,128.07,0.05966861]
[1743195319503,0.0568134,128.09,128.01,48.94936466]
[1743195319700,0.0568134,128.09,127.8,56.62]
[1743195320003,118.71863476,128.08,127.81,11.08958797]
[1743195320206,1.56164597,128.07,127.82,315.17556519]
[1743195320405,196.64315317,128.11,127.83,3.00014314]
[1743195320708,735.02406128,128.26,127.84,340.47002075]
[1743195321005,371.02406128,128.26,128.21,48.94936466]
[1743195321205,371.02406128,128.26,128.24,7.8031]
[1743195321401,48.94936466,128.39,128.24,48.94936466]
[1743195321603,7.10248301,128.43,128.24,48.94936466]
[1743195321604,7.10248301,128.43,128.3,48.94936466]
[1743195321805,7.10248301,128.43,128.38,62.0]
[1743195322110,50.61385859,128.43,128.39,314.22]
[1743195322502,48.94936466,128.55,128.39,256.55318853]
[1743195322704,48.94936466,128.55,128.41,48.94936466]
[1743195323097,48.94936466,128.6,128.44,48.94936466]
[1743195323308,48.94936466,128.6,128.45,57.68]
[1743195323504,48.94936466,128.57,128.42,124.0]
[1743195323810,48.94936466,128.6,128.43,314.3]
[1743195324010,57.64,128.62,128.45,48.94936466]
[1743195324220,57.5,128.69,128.48,97.89872932]
[1743195324509,48.94936466,128.65,128.56,7.7832]
[1743195324706,97.89872932,128.68,128.54,57.48]
[1743195324913,49.00859199,128.62,128.5,57.4]
[1743195325099,48.94936466,128.59,128.5,57.4]
[1743195325302,48.94936466,128.59,128.56,62.0]
[1743195325511,48.94936466,128.62,128.5,57.4]
[1743195325711,1304.06002391,128.68,128.5,106.34936466]
[1743195325712,97.89872932,128.68,128.5,106.34936466]
[1743195326009,97.89872932,128.68,128.5,107.70287094]
[1743195326211,0.05875472,128.6,128.5,107.70287094]
[1743195326401,97.89872932,128.68,128.5,107.70287094]
[1743195326609,48.55946667,128.62,128.59,62.0]
[1743195326903,0.0590747,128.6,128.59,62.0]
[1743195327310,0.0590747,128.6,128.5,61.0824]
[1743195327702,48.55946667,128.65,128.56,7.7836]
[1743195327908,0.05514719,128.62,128.57,56.78]
[1743195328107,48.61461386,128.62,128.57,56.78]
[1743195328309,48.61461386,128.62,128.61,62.0]
[1743195328716,0.05514719,128.62,128.61,62.0]
[1743195328907,56.39461386,128.62,128.5,4.1824]
[1743195329210,48.55946667,128.67,128.51,48.55946667]
[1743195329409,7.392e-05,128.57,128.56,7.7837]
[1743195329712,48.55946667,128.64,128.56,56.5]
[1743195329713,97.11893334,128.64,128.56,56.5]
[1743195329909,97.11893334,128.64,128.57,62.0]
[1743195330115,48.55946667,128.64,128.57,62.0]
[1743195330314,48.55946667,128.61,128.57,62.0]
[1743195330514,48.55946667,128.61,128.59,0.05377427]
[1743195330711,48.56324389,128.6,128.51,256.68]
[1743195330916,48.56324389,128.6,128.59,0.04901807]
[1743195331122,908.42404021,128.68,128.52,56.24]
[1743195331327,0.05375797,128.61,128.58,0.05515693]
[1743195331526,48.56324389,128.67,128.58,56.12]
[1743195331527,48.56324389,128.65,128.58,56.12]
[1743195331723,0.05906024,128.61,128.58,0.05768075]
[1743195331919,56.1,128.66,128.53,56.1]
[1743195332120,0.05614733,128.61,128.58,0.05526181]
[1743195332323,0.05614733,128.61,128.53,56.1]
[1743195332532,56.1,128.66,128.58,0.05733096]
[1743195332723,48.56324389,128.64,128.53,56.1]
[1743195332923,0.05557636,128.63,128.61,0.05335458]
[1743195333123,48.56324389,128.64,128.53,56.1]
[1743195333420,48.56324389,128.61,128.54,62.0]
[1743195333625,0.05777845,128.6,128.57,0.05646706]
[1743195333825,48.56324389,128.59,128.54,62.0]
[1743195334027,48.56324389,128.59,128.54,69.7848]
[1743195334431,0.05777845,128.6,128.54,62.0]
[1743195334827,0.05777845,128.6,128.56,7.54970962]
[1743195335026,0.05777845,128.6,128.54,62.0]
[1743195336230,48.56324389,128.59,128.54,62.0]
[1743195336428,48.56324389,128.56,128.54,62.0]
[1743195336832,48.61953643,128.56,128.54,62.0]
[1743195337926,0.05629254,128.56,128.54,62.0]
[1743195338128,43.4354501,128.55,128.54,62.0]
[1743195338328,43.4354501,128.55,128.48,103.40324389]
[1743195338529,43.4354501,128.55,128.54,7.7844]
[1743195338828,65.13003696,128.6,128.53,54.64]
[1743195339031,0.05147485,128.56,128.54,54.6]
[1743195339227,65.13003696,128.6,128.54,54.58]
[1743195339927,48.56324389,128.64,128.54,54.58]
[1743195340138,97.12648778,128.64,128.54,54.58]
[1743195340534,0.05572577,128.6,128.58,0.0564638]
[1743195341534,97.18221355,128.6,128.58,0.0564638]
[1743195341838,48.56324389,128.56,128.5,53.98]
[1743195342131,48.56324389,128.56,128.52,7.7856]
[1743195342333,48.56324389,128.56,128.53,62.0]
[1743195342738,48.61948474,128.56,128.53,62.0]
[1743195342932,48.56324389,128.54,128.51,7.7866]
[1743195343126,48.56324389,128.54,128.46,256.68]
[1743195343331,48.62152548,128.54,128.46,310.36]
[1743195343634,0.0509212,128.51,128.46,310.36]
[1743195343834,79.14194302,128.5,128.46,310.36]
[1743195344032,79.14194302,128.5,128.49,7.7879]
[1743195344736,2.12e-05,128.51,128.5,7.5538188]
[1743195344935,465.92324389,128.62,128.49,56.34324389]
[1743195345133,465.92324389,128.62,128.48,48.56324389]
[1743195345134,48.56324389,128.58,128.5,53.32]
[1743195345333,48.56324389,128.58,128.54,7.7849]
[1743195345631,48.56324389,128.58,128.54,7.5514506]
[1743195346030,0.05268979,128.56,128.54,69.5514506]
[1743195346432,325.45645536,128.55,128.54,46.1967506]
[1743195346631,325.45645536,128.55,128.53,0.0509212]
[1743195346840,374.01969925,128.55,128.49,52.94]
[1743195347040,422.59024615,128.55,128.53,7.7855]
[1743195347736,43.42707378,128.54,128.53,7.7855]
[1743195347940,43.42707378,128.54,128.52,7.786]
[1743195348134,43.42707378,128.54,128.49,52.94]
[1743195348737,43.42707378,128.53,128.49,52.94]
[1743195349132,0.05340299,128.52,128.51,7.7867]
[1743195349339,48.61664688,128.52,128.38,48.56324389]
[1743195349534,48.61664688,128.52,128.36,71.81324389]
[1743195349535,48.56324389,128.47,128.41,256.74]
[1743195349733,48.56324389,128.47,128.46,7.7897]
[1743195350533,48.22754955,128.47,128.46,7.7897]
[1743195351042,91.65462333,128.47,128.41,308.94]
[1743195351542,48.56324389,128.44,128.41,256.74]
[1743195351738,48.56324389,128.44,128.28,908.42404021]
[1743195351739,48.56324389,128.42,128.36,52.04]
[1743195351939,48.56324389,128.42,128.4,7.7932]
[1743195352241,0.05786795,128.4,128.35,52.04]
[1743195352746,748.59265771,128.42,128.38,48.56324389]
[1743195353047,597.57236804,128.42,128.41,7.7928]
[1743195353245,579.25006804,128.42,128.41,316.5928]
[1743195353437,579.25006804,128.42,128.41,324.3728]
[1743195353845,543.08632409,128.43,128.42,7.7922]
[1743195354141,530.87563408,128.43,128.42,7.7922]
[1743195354342,530.87563408,128.43,128.42,15.5722]
[1743195354741,530.87563408,128.43,128.42,15.33860063]
[1743195355141,506.25573408,128.43,128.42,15.33860063]
[1743195355337,0.05920773,128.44,128.43,7.7916]
[1743195355542,6.04618498,128.44,128.43,7.55800063]
[1743195356246,6.04618498,128.44,128.43,58.97800063]
[1743195356447,15.66166776,128.44,128.43,58.97800063]
[1743195356649,15.66166776,128.44,128.43,58.85800063]
[1743195356947,15.66166776,128.44,128.43,7.55800063]
[1743195357350,18.77628582,128.44,128.43,7.55800063]
[1743195358343,513.91431241,128.44,128.43,7.55800063]
[1743195358948,501.18421157,128.44,128.43,7.55800063]
[1743195359250,488.98921157,128.44,128.43,15.33800063]
[1743195359442,307.37786835,128.46,128.45,7.7904]
[1743195359756,295.60896835,128.46,128.45,64.13364389]
[1743195359948,421.86063143,128.46,128.45,64.13364389]
[1743195360547,421.86063143,128.46,128.45,15.5704]
[1743195360751,421.86063143,128.46,128.45,7.7904]
[1743195360954,421.86063143,128.46,128.45,58.3504]
[1743195361551,0.05542475,128.47,128.46,7.7898]
[1743195363357,663.87329055,128.47,128.46,7.7898]
[1743195365351,958.56566228,128.47,128.46,7.7898]
[1743195365549,946.83786228,128.47,128.46,15.33626427]
[1743195365748,353.60143073,128.49,128.48,7.7886]
[1743195366057,254.82653073,128.49,128.48,56.35184389]
[1743195366353,254.82653073,128.49,128.48,64.13184389]
[1743195366854,254.82653073,128.49,128.48,7.7886]
[1743195367048,262.79596914,128.49,128.48,7.7886]
[1743195367355,56.5326823,128.49,128.47,0.05926663]
[1743195367552,7.96943841,128.48,128.47,0.05926663]
[1743195367848,7.96943841,128.48,128.38,15.5881]
[1743195367849,48.56324389,128.47,128.4,49.44]
[1743195368047,7.96943841,128.46,128.4,49.44]
[1743195368247,7.96943841,128.45,128.4,49.44]
[1743195368448,7.96943841,128.44,128.4,49.44]
[1743195368645,7.96943841,128.43,128.4,49.44]
[1743195368844,7.96943841,128.42,128.41,0.05016811]
[1743195369056,7.96943841,128.42,128.41,7.84296811]
[1743195369260,0.05915563,128.43,128.41,0.05016811]
[1743195369559,0.05915563,128.43,128.42,7.7922]
[1743195369753,8.02596645,128.43,128.42,7.7922]
[1743195371249,13.00279384,128.43,128.42,7.7922]
[1743195371551,13.00279384,128.43,128.41,0.05016811]
[1743195371857,13.00279384,128.43,128.41,7.84296811]
[1743195371858,12.94363821,128.42,128.41,7.84296811]
[1743195372053,4.97682739,128.42,128.41,7.84296811]
[1743195372247,12.93921092,128.42,128.41,7.84296811]
[1743195372455,4.97682739,128.42,128.41,7.84296811]
[1743195374156,0.05915563,128.43,128.42,7.7922]
[1743195374957,0.05915563,128.43,128.41,0.05016811]
[1743195375650,7.96360859,128.42,128.41,0.05016811]
[1743195375854,7.96360859,128.42,128.41,7.84256811]
[1743195376460,7.96360859,128.42,128.37,177.06134375]
[1743195376654,0.05915563,128.43,128.37,177.06134375]
[1743195376851,56.52750494,128.42,128.37,122.56194375]
[1743195377159,48.56324389,128.4,128.37,103.00114375]
[1743195377363,7.96426105,128.39,128.37,103.00114375]
[1743195377552,0.05408243,128.39,128.37,103.05198956]
[1743195377749,0.05408243,128.39,128.37,150.87198956]
[1743195378164,0.05408243,128.39,128.38,7.794]
[1743195378357,7.94559259,128.47,128.38,48.56324389]
[1743195378557,7.94559259,128.46,128.4,48.56324389]
[1743195378755,206.32118443,128.48,128.45,7.7901]
[1743195378958,7.94623614,128.47,128.45,7.7901]
[1743195379158,7.94623614,128.46,128.45,7.7901]
[1743195379660,0.05756214,128.47,128.44,0.05477433]
[1743195381452,0.05756214,128.47,128.44,7.84547433]
[1743195382356,0.05756214,128.47,128.44,0.05477433]
[1743195382763,0.05756214,128.47,128.43,55.10977532]
[1743195382960,48.62080603,128.47,128.43,7.7914]
[1743195383265,48.62080603,128.47,128.42,7.7918]
[1743195383459,7.7903,128.46,128.41,47.0]
[1743195383862,7.7903,128.46,128.43,7.7916]
[1743195384066,0.05861044,128.45,128.43,7.7916]
[1743195384568,7.84911044,128.45,128.42,7.84979069]
[1743195385965,4.97196568,128.44,128.42,7.84979069]
[1743195386165,7.84911044,128.45,128.42,7.84979069]
[1743195386465,12.76280344,128.44,128.42,7.84979069]
[1743195386668,7.7911,128.44,128.42,7.84979069]
[1743195386861,4.97446357,128.43,128.42,7.84979069]
[1743195387063,12.76606357,128.43,128.42,0.05789069]
[1743195387263,364.0,128.4,128.3,80.94187669]
[1743195387460,1005.55052799,128.36,128.31,314.5042274]
[1743195387661,104.92478778,128.32,128.31,314.5042274]
[1743195387865,109.89925135,128.32,128.31,249.00739079]
[1743195388663,125.63513001,128.32,128.31,124.04340618]
[1743195388867,125.63513001,128.32,128.31,78.16020618]
[1743195389068,125.63513001,128.32,128.31,32.25610618]
[1743195389268,125.63513001,128.32,128.31,6.18e-06]
[1743195389566,117.83683001,128.32,128.21,54.3645]
[1743195389770,48.56324389,128.28,128.21,54.3645]
[1743195389971,4.94893487,128.27,128.21,46.56]
[1743195390172,7.8011,128.28,128.21,46.56]
[1743195390369,0.05427403,128.25,128.22,48.56324389]
[1743195390578,4.94280985,128.3,128.22,48.56324389]
[1743195390867,364.0,128.31,128.26,7.8018]
[1743195391073,908.42404021,128.4,128.24,48.56324389]
[1743195391074,48.72800212,128.41,128.3,48.72800212]
[1743195391371,10.52199897,128.37,128.33,7.7973]
[1743195391569,10.52199897,128.37,128.3,94.90800212]
[1743195391570,4.94432957,128.36,128.3,46.18]
[1743195391763,0.05774376,128.36,128.34,0.05221833]
[1743195396468,43.90949686,128.35,128.34,0.05221833]
[1743195396673,43.90949686,128.35,128.26,4.1906]
[1743195396973,38.97241128,128.33,128.26,4.1906]
[1743195397475,4.93268709,128.32,128.26,4.1906]
[1743195397673,402.97241128,128.36,128.26,4.1906]
[1743195397966,0.05756517,128.3,128.26,4.1906]
[1743195398172,0.05756517,128.3,128.27,7.8012]
[1743195398662,0.05756517,128.3,128.29,7.8001]
[1743195398865,374.52199897,128.39,128.29,7.8001]
[1743195398866,374.52199897,128.39,128.29,84.11241128]
[1743195399066,15.45405482,128.38,128.29,84.11241128]
[1743195399365,10.52199897,128.38,128.29,84.11241128]
[1743195399969,0.05547293,128.35,128.34,7.7967]
[1743195400870,364.0,128.42,128.37,7.7952]
[1743195401073,4.9328381,128.41,128.37,7.7952]
[1743195401269,364.0,128.42,128.37,7.7952]
[1743195401466,4.93365149,128.41,128.37,7.7952]
[1743195401663,364.0,128.42,128.37,7.7952]
[1743195401968,4.98808573,128.41,128.38,0.05303707]
[1743195402163,0.05481119,128.41,128.38,0.05303707]
[1743195402568,0.05481119,128.41,128.37,7.43347589]
[1743195403274,0.05481119,128.41,128.38,7.7945]
[1743195403572,371.7922,128.42,128.38,7.7945]
[1743195403769,0.05556716,128.41,128.38,7.84765604]
[1743195404369,0.05556716,128.41,128.38,0.05315604]
[1743195404575,43.90392603,128.4,128.38,0.05315604]
[1743195404869,4.93097101,128.39,128.28,38.97241128]
[1743195405067,43.90299824,128.38,128.29,44.28]
[1743195405263,4.93017059,128.37,128.29,44.28]
[1743195405467,7.7959,128.36,128.32,7.798]
[1743195405766,38.97241128,128.36,128.29,44.24]
[1743195405973,0.04931302,128.35,128.29,44.24]
[1743195406273,0.04931302,128.35,128.29,44.1]
[1743195406468,263.04997429,128.33,128.29,44.1]
[1743195406774,0.05628211,128.32,128.26,4.1906]
[1743195406973,0.05628211,128.32,128.27,44.1]
[1743195407274,0.05628211,128.32,128.29,7.7998]
[1743195407977,7.85488211,128.32,128.28,7.8006]
[1743195408178,0.05628211,128.32,128.27,43.98]
[1743195408377,7.7989,128.31,128.27,43.98]
[1743195408571,0.05628211,128.32,128.22,43.06941128]
[1743195408773,38.97241128,128.33,128.24,43.84]
[1743195408973,0.05659133,128.3,128.26,7.8016]
[1743195409174,0.05659133,128.3,128.24,43.84]
[1743195409477,0.05659133,128.3,128.28,7.8003]
[1743195409880,0.05659133,128.3,128.25,43.76]
[1743195411783,0.05659133,128.3,128.29,7.8001]
[1743195412582,0.05659133,128.3,128.25,43.76]
[1743195412982,7.8016,128.27,128.23,7.8034]
[1743195413177,38.97241128,128.31,128.23,7.8034]
[1743195413373,0.04983624,128.26,128.23,7.8034]
[1743195413581,7.85173624,128.26,128.23,7.8034]
[1743195413774,7.85173624,128.26,128.22,47.337]
[1743195413979,38.97241128,128.25,128.14,38.97241128]
[1743195414283,38.97241128,128.23,128.14,3.924]
[1743195414585,7.8069,128.18,128.14,3.924]
[1743195414782,38.97241128,128.21,128.14,3.924]
[1743195414979,0.05201091,128.17,128.0,864.82698712]
[1743195415286,38.97241128,128.19,128.08,51.4658]
[1743195415588,0.05505539,128.13,128.12,7.8101]
[1743195415887,82.15241128,128.2,128.12,7.8101]
[1743195415888,12.72311165,128.17,128.12,7.8101]
[1743195416079,0.05411834,128.14,128.12,7.8101]
[1743195417281,364.0,128.19,128.1,42.96]
[1743195417474,4.90318937,128.18,128.1,42.96]
[1743195417681,364.0,128.19,128.1,42.96]
[1743195417881,4.90303507,128.18,128.1,42.96]
[1743195418081,7.8076,128.17,128.11,7.8108]
[1743195418389,0.0553247,128.15,128.13,0.05659611]
[1743195421790,0.0553247,128.15,128.02,1.35839335]
[1743195422095,38.97241128,128.1,128.02,42.38]
[1743195422481,38.97241128,128.08,128.02,42.38]
[1743195422895,7.8139,128.07,128.01,8.0161]
[1743195423095,39.02903517,128.06,128.01,8.0161]
[1743195423294,39.02903517,128.06,127.95,257.4]
[1743195423295,77.94482256,128.02,127.86,429.12378883]
[1743195423495,38.97241128,127.87,127.86,76.36557074]
[1743195423807,77.94482256,127.92,127.85,320.51186703]
[1743195423995,38.97241128,127.92,127.85,320.51186703]
[1743195424196,0.05500047,127.9,127.85,320.51186703]
[1743195424397,38.97241128,127.86,127.85,320.51186703]
[1743195424895,129.58123241,127.86,127.85,55.5886976]
[1743195425099,129.58123241,127.86,127.83,125.60857747]
[1743195425295,802.40297584,127.84,127.83,125.60857747]
[1743195425598,98.0,127.83,127.75,419.00721327]
[1743195425903,38.97241128,127.76,127.68,7.743]
[1743195426097,39.02318247,127.8,127.67,38.97241128]
[1743195426402,38.97241128,127.79,127.71,91.07297507]
[1743195426595,38.97241128,127.73,127.66,75.43297507]
[1743195426795,38.97241128,127.76,127.7,15.64]
[1743195426996,38.97241128,127.8,127.74,91.07297507]
[1743195427196,46.68208087,127.84,127.76,75.43297507]
[1743195427402,7.70966959,127.84,127.76,46.82]
[1743195427701,240.16718764,127.86,127.83,91.07297507]
[1743195427898,38.97241128,127.96,127.85,91.07297507]
[1743195428097,38.97241128,127.96,127.9,91.07297507]
[1743195428302,0.05532649,127.9,127.89,75.43297507]
[1743195428504,124.70482256,128.0,127.92,91.07297507]
[1743195428701,85.73241128,128.0,127.89,62.0]
[1743195428892,275.88221451,127.95,127.88,38.97241128]
[1743195429092,275.88221451,127.95,127.94,64.88309191]
[1743195429699,182.05874584,127.95,127.94,72.70449191]
[1743195429898,291.60649741,127.96,127.94,7.82]
[1743195430208,166.75770134,127.99,127.95,150.51550319]
[1743195430405,166.75770134,127.99,127.98,64.88309191]
[1743195430795,166.75770134,127.99,127.93,7.8215]
[1743195430997,166.75770134,127.99,127.97,64.88309191]
[1743195431402,166.8166623,127.99,127.95,0.05138525]
[1743195431604,43.70876623,127.99,127.97,64.88309191]
[1743195431803,0.05896096,127.99,127.97,64.88309191]
[1743195431999,0.05896096,127.99,127.98,62.0]
[1743195432206,0.05896096,127.99,127.95,0.05138525]
[1743195432600,0.05896096,127.99,127.98,64.88309191]
[1743195432810,0.05896096,127.99,127.96,46.36]
[1743195433004,0.05896096,127.99,127.98,64.88309191]
[1743195433301,80.9088459,128.0,127.99,64.88309191]
[1743195433503,303.40817212,128.02,128.0,7.8173]
[1743195433704,303.40817212,128.02,128.01,18.16641443]
[1743195434903,495.43488093,128.02,128.01,18.16641443]
[1743195435713,495.43488093,128.02,128.01,25.98361443]
[1743195436407,582.63998437,128.02,128.01,25.98361443]
[1743195436707,582.63998437,128.02,128.01,126.08641443]
[1743195437508,582.63998437,128.02,127.92,39.20295785]
[1743195437705,582.63998437,128.02,127.99,18.16641443]
[1743195438103,582.63998437,128.02,127.93,303.66]
[1743195438303,582.63998437,128.02,127.99,18.16641443]
[1743195438511,582.63998437,128.02,128.01,62.0]
[1743195438712,582.69810031,128.02,128.01,62.0]
[1743195439516,582.69810031,128.02,127.99,0.0557632]
[1743195439712,495.43488093,127.98,127.95,45.5]
[1743195439913,495.43488093,127.98,127.97,18.16641443]
[1743195440307,495.43488093,127.98,127.94,45.48]
[1743195440509,534.62653084,127.98,127.97,62.0]
[1743195441110,534.62653084,127.98,127.92,45.38]
[1743195441310,534.62653084,127.98,127.95,18.16641443]
[1743195441517,256.92080207,127.98,127.95,18.16641443]
[1743195441704,256.92080207,127.98,127.91,257.82]
[1743195441908,39.19164991,127.96,127.92,18.16641443]
[1743195442108,39.19164991,127.96,127.93,48.0]
[1743195442308,0.05344142,127.95,127.93,48.02563627]
[1743195443715,152.65742801,127.94,127.93,48.02563627]
[1743195444114,152.65742801,127.94,127.91,303.04]
[1743195444417,152.65742801,127.94,127.92,18.16641443]
[1743195444907,152.65742801,127.94,127.91,303.04]
[1743195445109,152.65742801,127.94,127.88,7.825]
[1743195445307,191.84907792,127.94,127.89,18.16641443]
[1743195445517,39.24385085,127.92,127.87,18.16641443]
[1743195446218,706.61665494,127.91,127.89,18.16641443]
[1743195447619,859.27408295,127.9,127.89,18.16641443]
[1743195450618,859.27408295,127.9,127.85,257.86]
[1743195450817,859.27408295,127.9,127.87,18.16641443]
[1743195451012,0.05641319,127.89,127.87,18.16641443]
[1743195451214,0.05641319,127.89,127.85,302.04]
[1743195451419,0.05641319,127.89,127.87,18.16641443]
[1743195451922,0.05641319,127.89,127.88,18.16641443]
[1743195452423,0.05641319,127.89,127.87,18.16641443]
[1743195452915,0.05641319,127.89,127.85,309.8669]
[1743195453117,0.05641319,127.89,127.87,18.16641443]
[1743195453518,0.05641319,127.89,127.85,302.04]
[1743195453719,0.05641319,127.89,127.87,18.16641443]
[1743195453921,0.05641319,127.89,127.85,309.8667]
[1743195454124,0.05641319,127.89,127.87,18.16641443]
[1743195454320,0.05641319,127.89,127.88,18.16641443]
[1743195454715,0.05641319,127.89,127.86,7.8262]
[1743195454915,0.05641319,127.89,127.88,18.16641443]
[1743195455330,87.23520458,127.93,127.88,18.16641443]
[1743195455625,87.23520458,127.93,127.92,18.16641443]
[1743195456024,169.71569863,127.98,127.9,7.8235]
[1743195456223,169.71569863,127.98,127.92,18.16641443]
[1743195456424,39.24812155,127.95,127.93,0.05641319]
[1743195456825,0.05647164,127.95,127.93,0.05641319]
[1743195457625,0.05647164,127.95,127.89,43.64]
[1743195457626,39.24812155,127.95,127.89,43.64]
[1743195457921,7.8224,127.93,127.9,18.16641443]
[1743195458321,39.19164991,127.93,127.85,257.86]
[1743195458531,39.19164991,127.93,127.88,18.16641443]
[1743195458725,0.0580161,127.9,127.88,18.16641443]
[1743195458931,0.0580161,127.9,127.87,7.8253]
[1743195459130,0.0580161,127.9,127.88,18.16641443]
[1743195459526,0.0580161,127.9,127.88,7.825]
[1743195459726,0.0580161,127.9,127.86,43.28]
[1743195460026,0.0580161,127.9,127.88,18.16641443]
[1743195460223,0.0580161,127.9,127.88,25.99121443]
[1743195460528,0.0580161,127.9,127.88,7.8248]
[1743195461027,0.0580161,127.9,127.89,25.99091443]
[1743195461528,0.0580161,127.9,127.88,7.8249]
[1743195462128,0.0580161,127.9,127.89,7.8245]
[1743195462933,0.0580161,127.9,127.88,7.8247]
[1743195463127,0.0580161,127.9,127.88,25.99111443]
[1743195463327,0.0580161,127.9,127.86,43.28]
[1743195463527,0.0580161,127.9,127.88,18.16641443]
[1743195464028,0.0580161,127.9,127.86,43.28]
[1743195464229,0.0580161,127.9,127.89,25.99091443]
[1743195464436,364.0,127.95,127.89,18.16641443]
[1743195464626,4.79508509,127.94,127.91,18.16641443]